[Event "Titled Tuesday Blitz August 17 2021"]
[White "Karttunen, Mika"]
[Black "Pourkashiyan, Atousa"]
[WhiteFideId "502081"]
[BlackFideId "12502014"]
[WhiteElo "2343"]
[BlackElo "2285"]
[Result "1/2-1/2"]
[Round "06"]
[TimeControl "180+1"]
[Date "2021.08.17"]
[WhiteClock "0:00:32"]
[BlackClock "0:00:09"]

1. e4 {[%clk 0:03:00]}  e5 {[%clk 0:01:42]} 2. Nf3 {[%clk 0:03:00]}  Nf6 {[%clk 0:01:41]} 3. Nxe5 {[%clk 0:03:00]}  d6 {[%clk 0:01:40]} 4. Nf3 {[%clk 0:02:58]}  Nxe4 {[%clk 0:01:41]} 5. Nc3 {[%clk 0:02:58]}  Nxc3 {[%clk 0:01:41]} 6. dxc3 {[%clk 0:02:59]}  Be7 {[%clk 0:01:42]} 7. Be3 {[%clk 0:02:58]}  Nc6 {[%clk 0:01:42]} 8. Qd2 {[%clk 0:02:58]}  Be6 {[%clk 0:01:42]} 9. O-O-O {[%clk 0:02:57]}  Qd7 {[%clk 0:01:43]} 10. Kb1 {[%clk 0:02:54]}  O-O-O {[%clk 0:01:42]} 11. Nd4 {[%clk 0:02:46]}  Bf6 {[%clk 0:01:38]} 12. Nxe6 {[%clk 0:02:40]}  fxe6 {[%clk 0:01:38]} 13. g4 {[%clk 0:02:22]}  a6 {[%clk 0:01:36]} 14. g5 {[%clk 0:02:16]}  Be7 {[%clk 0:01:36]} 15. f4 {[%clk 0:02:14]}  Kb8 {[%clk 0:01:36]} 16. h4 {[%clk 0:02:13]}  Rdf8 {[%clk 0:01:35]} 17. Bh3 {[%clk 0:02:13]}  Bd8 {[%clk 0:01:34]} 18. Rde1 {[%clk 0:02:06]}  Re8 {[%clk 0:01:28]} 19. Qe2 {[%clk 0:02:01]}  Ka8 {[%clk 0:01:23]} 20. Qh5 {[%clk 0:01:49]}  Na5 {[%clk 0:01:16]} 21. b3 {[%clk 0:01:39]}  Qb5 {[%clk 0:01:14]} 22. Qe2 {[%clk 0:01:33]}  Qxe2 {[%clk 0:01:04]} 23. Rxe2 {[%clk 0:01:33]}  e5 {[%clk 0:01:04]} 24. Rhe1 {[%clk 0:01:07]}  Nc6 {[%clk 0:00:59]} 25. Bd7 {[%clk 0:01:05]}  Re7 {[%clk 0:00:56]} 26. Bxc6 {[%clk 0:01:05]}  bxc6 {[%clk 0:00:57]} 27. Bd4 {[%clk 0:01:03]}  Rhe8 {[%clk 0:00:24]} 28. fxe5 {[%clk 0:01:03]}  Re6 {[%clk 0:00:21]} 29. c4 {[%clk 0:00:59]}  c5 {[%clk 0:00:19]} 30. Bc3 {[%clk 0:00:58]}  h6 {[%clk 0:00:18]} 31. gxh6 {[%clk 0:00:51]}  gxh6 {[%clk 0:00:18]} 32. h5 {[%clk 0:00:52]}  Bg5 {[%clk 0:00:17]} 33. a3 {[%clk 0:00:45]}  Kb7 {[%clk 0:00:17]} 34. Kb2 {[%clk 0:00:45]}  Kc6 {[%clk 0:00:18]} 35. Re4 {[%clk 0:00:43]}  Bd8 {[%clk 0:00:13]} 36. b4 {[%clk 0:00:39]}  cxb4 {[%clk 0:00:09]} 37. axb4 {[%clk 0:00:39]}  Bg5 {[%clk 0:00:08]} 38. Kb3 {[%clk 0:00:39]}  Rf8 {[%clk 0:00:07]} 39. exd6 {[%clk 0:00:38]}  Rxe4 {[%clk 0:00:06]} 40. Rxe4 {[%clk 0:00:39]}  cxd6 {[%clk 0:00:06]} 41. Re6 {[%clk 0:00:37]}  Rf3 {[%clk 0:00:06]} 42. Kb2 {[%clk 0:00:35]}  Kd7 {[%clk 0:00:06]} 43. Rg6 {[%clk 0:00:35]}  Rh3 {[%clk 0:00:07]} 44. Rg7+ {[%clk 0:00:35]}  Kc6 {[%clk 0:00:07]} 45. Rg6 {[%clk 0:00:35]}  Rxh5 {[%clk 0:00:06]} 46. c5 {[%clk 0:00:35]}  Bf4 {[%clk 0:00:05]} 47. cxd6 {[%clk 0:00:34]}  Bxd6 {[%clk 0:00:06]} 48. Be5 {[%clk 0:00:34]}  Rxe5 {[%clk 0:00:06]} 49. Rxh6 {[%clk 0:00:33]}  Rd5 {[%clk 0:00:07]} 50. c3 {[%clk 0:00:34]}  Rd2+ {[%clk 0:00:07]} 51. Kb3 {[%clk 0:00:34]}  Rd3 {[%clk 0:00:08]} 52. Kc4 {[%clk 0:00:30]}  Rd1 {[%clk 0:00:07]} 53. Rg6 {[%clk 0:00:31]}  Kc7 {[%clk 0:00:07]} 54. Rh6 {[%clk 0:00:31]}  Rc1 {[%clk 0:00:07]} 55. Rh5 {[%clk 0:00:31]}  Rd1 {[%clk 0:00:07]} 56. Rh6 {[%clk 0:00:31]}  Rc1 {[%clk 0:00:07]} 57. Rh5 {[%clk 0:00:31]}  Rf1 {[%clk 0:00:07]} 58. Rh6 {[%clk 0:00:31]}  Rf5 {[%clk 0:00:08]} 59. Rg6 {[%clk 0:00:31]}  Kc6 {[%clk 0:00:08]} 60. Rh6 {[%clk 0:00:31]}  Rf4+ {[%clk 0:00:09]} 61. Kb3 {[%clk 0:00:31]}  Kd5 {[%clk 0:00:09]} 62. Rh5+ {[%clk 0:00:32]}  Be5 {[%clk 0:00:08]} 63. c4+ {[%clk 0:00:32]}  Rxc4 {[%clk 0:00:08]} 64. Rxe5+ {[%clk 0:00:32]}  Kxe5 {[%clk 0:00:08]} 65. Kxc4 {[%clk 0:00:33]}  Kd6 {[%clk 0:00:09]} 66. b5 {[%clk 0:00:31]}  axb5+ {[%clk 0:00:09]} 67. Kxb5 {[%clk 0:00:32]} 1/2-1/2


[Site "https://www.chess.com"]

[Event "Titled Tuesday Blitz August 17 2021"]
[White "Khabinets, Ivan"]
[Black "Yaran, Siar"]
[WhiteFideId "14115980"]
[BlackFideId "6323006"]
[WhiteElo "2114"]
[BlackElo "1977"]
[Result "1-0"]
[Round "06"]
[TimeControl "180+1"]
[Date "2021.08.17"]
[WhiteClock "0:00:43"]
[BlackClock "0:00:14"]

1. e4 {[%clk 0:02:49]}  e5 {[%clk 0:02:59]} 2. Nf3 {[%clk 0:02:50]}  Nc6 {[%clk 0:03:00]} 3. Bb5 {[%clk 0:02:50]}  a6 {[%clk 0:03:00]} 4. Ba4 {[%clk 0:02:51]}  Nf6 {[%clk 0:02:59]} 5. Nc3 {[%clk 0:02:52]}  d6 {[%clk 0:02:58]} 6. O-O {[%clk 0:02:51]}  Bd7 {[%clk 0:02:57]} 7. d4 {[%clk 0:02:51]}  Be7 {[%clk 0:02:56]} 8. Re1 {[%clk 0:02:45]}  exd4 {[%clk 0:02:33]} 9. Nxd4 {[%clk 0:02:44]}  O-O {[%clk 0:02:31]} 10. Nxc6 {[%clk 0:02:43]}  Bxc6 {[%clk 0:02:30]} 11. Bxc6 {[%clk 0:02:43]}  bxc6 {[%clk 0:02:31]} 12. b3 {[%clk 0:02:43]}  Nd7 {[%clk 0:02:30]} 13. Be3 {[%clk 0:02:37]}  Bf6 {[%clk 0:02:28]} 14. Bd4 {[%clk 0:02:38]}  Re8 {[%clk 0:02:28]} 15. Bxf6 {[%clk 0:02:35]}  Qxf6 {[%clk 0:02:29]} 16. Qd2 {[%clk 0:02:35]}  Re6 {[%clk 0:02:21]} 17. Rad1 {[%clk 0:02:34]}  Rae8 {[%clk 0:02:20]} 18. f3 {[%clk 0:02:32]}  Qe5 {[%clk 0:02:16]} 19. Ne2 {[%clk 0:02:30]}  Qc5+ {[%clk 0:01:56]} 20. Qd4 {[%clk 0:02:25]}  Qa5 {[%clk 0:01:42]} 21. Qc3 {[%clk 0:02:13]}  Qxc3 {[%clk 0:01:40]} 22. Nxc3 {[%clk 0:02:13]}  f5 {[%clk 0:01:41]} 23. Kf2 {[%clk 0:02:10]}  fxe4 {[%clk 0:01:34]} 24. Rxe4 {[%clk 0:02:10]}  Kf7 {[%clk 0:01:32]} 25. Rf4+ {[%clk 0:02:01]}  Nf6 {[%clk 0:01:26]} 26. Ra4 {[%clk 0:02:01]}  Ra8 {[%clk 0:01:23]} 27. Rd2 {[%clk 0:01:55]}  d5 {[%clk 0:01:16]} 28. Ra5 {[%clk 0:01:52]}  Ke7 {[%clk 0:01:13]} 29. Na4 {[%clk 0:01:52]}  Nd7 {[%clk 0:01:13]} 30. c4 {[%clk 0:01:36]}  dxc4 {[%clk 0:01:12]} 31. bxc4 {[%clk 0:01:37]}  Nb6 {[%clk 0:01:12]} 32. Nc5 {[%clk 0:01:25]}  Nxc4 {[%clk 0:01:01]} 33. Nxe6 {[%clk 0:01:25]}  Nxa5 {[%clk 0:00:52]} 34. Nxg7 {[%clk 0:01:25]}  c5 {[%clk 0:00:45]} 35. Nf5+ {[%clk 0:01:20]}  Ke6 {[%clk 0:00:45]} 36. Ne3 {[%clk 0:01:19]}  Rb8 {[%clk 0:00:43]} 37. f4 {[%clk 0:01:15]}  Rb4 {[%clk 0:00:35]} 38. Kf3 {[%clk 0:01:15]}  c4 {[%clk 0:00:31]} 39. f5+ {[%clk 0:01:08]}  Kf7 {[%clk 0:00:22]} 40. Rd7+ {[%clk 0:01:07]}  Kg8 {[%clk 0:00:22]} 41. Rxc7 {[%clk 0:01:07]}  Ra4 {[%clk 0:00:22]} 42. f6 {[%clk 0:01:04]}  Rxa2 {[%clk 0:00:19]} 43. Nf5 {[%clk 0:01:02]}  h5 {[%clk 0:00:13]} 44. Nh6+ {[%clk 0:00:45]}  Kh8 {[%clk 0:00:14]} 45. f7 {[%clk 0:00:43]}  Kh7 {[%clk 0:00:14]} 46. f8=Q+ {[%clk 0:00:43]} 1-0


[Site "https://www.chess.com"]

[Event "Titled Tuesday Blitz August 17 2021"]
[White "Koellner, Ruben Gideon"]
[Black "Seo, Jung Min"]
[WhiteFideId "12993093"]
[BlackFideId "1734687"]
[WhiteElo "2525"]
[BlackElo "2486"]
[Result "1-0"]
[Round "06"]
[TimeControl "180+1"]
[Date "2021.08.17"]
[WhiteClock "0:00:54"]
[BlackClock "0:01:19"]

1. d4 {[%clk 0:03:00]}  Nf6 {[%clk 0:02:59]} 2. Bg5 {[%clk 0:03:00]}  Ne4 {[%clk 0:02:59]} 3. Bf4 {[%clk 0:03:00]}  d5 {[%clk 0:02:59]} 4. e3 {[%clk 0:02:59]}  e6 {[%clk 0:02:54]} 5. Bd3 {[%clk 0:02:59]}  Bd6 {[%clk 0:02:50]} 6. Bxe4 {[%clk 0:02:56]}  dxe4 {[%clk 0:02:43]} 7. Nc3 {[%clk 0:02:52]}  Bxf4 {[%clk 0:02:42]} 8. exf4 {[%clk 0:02:53]}  Qd6 {[%clk 0:02:41]} 9. Qd2 {[%clk 0:02:48]}  Nc6 {[%clk 0:02:36]} 10. O-O-O {[%clk 0:02:44]}  f5 {[%clk 0:02:33]} 11. f3 {[%clk 0:02:43]}  exf3 {[%clk 0:02:33]} 12. Nxf3 {[%clk 0:02:43]}  O-O {[%clk 0:02:33]} 13. Rhe1 {[%clk 0:02:32]}  Bd7 {[%clk 0:02:25]} 14. Ne5 {[%clk 0:02:20]}  Nxe5 {[%clk 0:02:23]} 15. Rxe5 {[%clk 0:02:21]}  Rae8 {[%clk 0:02:20]} 16. Rde1 {[%clk 0:02:17]}  a6 {[%clk 0:02:18]} 17. g3 {[%clk 0:02:16]}  Rd8 {[%clk 0:02:17]} 18. Qe3 {[%clk 0:02:01]}  c6 {[%clk 0:02:08]} 19. Na4 {[%clk 0:01:47]}  Bc8 {[%clk 0:01:58]} 20. c3 {[%clk 0:01:42]}  Rde8 {[%clk 0:01:46]} 21. Nb6 {[%clk 0:01:29]}  Rf6 {[%clk 0:01:25]} 22. Nxc8 {[%clk 0:01:26]}  Rxc8 {[%clk 0:01:25]} 23. Rxe6 {[%clk 0:01:25]}  Rxe6 {[%clk 0:01:25]} 24. Qxe6+ {[%clk 0:01:26]}  Qxe6 {[%clk 0:01:25]} 25. Rxe6 {[%clk 0:01:26]}  Kf7 {[%clk 0:01:26]} 26. Re5 {[%clk 0:01:26]}  g6 {[%clk 0:01:26]} 27. Kd2 {[%clk 0:01:26]}  Rc7 {[%clk 0:01:24]} 28. Kd3 {[%clk 0:01:25]}  Rc8 {[%clk 0:01:24]} 29. Kc4 {[%clk 0:01:25]}  b6 {[%clk 0:01:24]} 30. a4 {[%clk 0:01:23]}  a5 {[%clk 0:01:24]} 31. b4 {[%clk 0:01:19]}  axb4 {[%clk 0:01:24]} 32. Kxb4 {[%clk 0:01:11]}  Rb8 {[%clk 0:01:21]} 33. c4 {[%clk 0:00:58]}  Rc8 {[%clk 0:01:19]} 34. a5 {[%clk 0:00:53]}  bxa5+ {[%clk 0:01:19]} 35. Rxa5 {[%clk 0:00:54]}  Rb8+ {[%clk 0:01:19]} 36. Kc5 {[%clk 0:00:54]} 1-0


[Site "https://www.chess.com"]

[Event "Titled Tuesday Blitz August 17 2021"]
[White "Kravtsiv, Martyn"]
[Black "Tang, Andrew"]
[WhiteFideId "14113147"]
[BlackFideId "2059630"]
[WhiteElo "2680"]
[BlackElo "2588"]
[Result "0-1"]
[Round "06"]
[TimeControl "180+1"]
[Date "2021.08.17"]
[WhiteClock "0:00:02"]
[BlackClock "0:00:06"]

1. e4 {[%clk 0:03:00]}  e5 {[%clk 0:02:59]} 2. Bc4 {[%clk 0:02:59]}  Nc6 {[%clk 0:02:59]} 3. Nc3 {[%clk 0:02:58]}  Bc5 {[%clk 0:02:59]} 4. d3 {[%clk 0:02:57]}  d6 {[%clk 0:02:59]} 5. f4 {[%clk 0:02:57]}  Nf6 {[%clk 0:02:59]} 6. Nf3 {[%clk 0:02:57]}  a6 {[%clk 0:03:00]} 7. f5 {[%clk 0:02:52]}  b5 {[%clk 0:02:57]} 8. Bb3 {[%clk 0:02:04]}  Nd4 {[%clk 0:02:46]} 9. Bg5 {[%clk 0:02:03]}  h6 {[%clk 0:02:43]} 10. Bh4 {[%clk 0:02:02]}  c6 {[%clk 0:02:41]} 11. Qd2 {[%clk 0:02:01]}  a5 {[%clk 0:02:39]} 12. a4 {[%clk 0:01:54]}  b4 {[%clk 0:02:36]} 13. Ne2 {[%clk 0:01:52]}  Nxb3 {[%clk 0:02:35]} 14. cxb3 {[%clk 0:01:52]}  Qb6 {[%clk 0:02:36]} 15. Bxf6 {[%clk 0:01:49]}  gxf6 {[%clk 0:02:36]} 16. d4 {[%clk 0:01:46]}  exd4 {[%clk 0:02:29]} 17. Nexd4 {[%clk 0:01:45]}  Ba6 {[%clk 0:02:19]} 18. O-O-O {[%clk 0:01:45]}  O-O-O {[%clk 0:02:19]} 19. Rhe1 {[%clk 0:01:42]}  Rde8 {[%clk 0:02:13]} 20. Kb1 {[%clk 0:01:36]}  Re7 {[%clk 0:02:12]} 21. Nc2 {[%clk 0:01:31]}  h5 {[%clk 0:02:10]} 22. Qf4 {[%clk 0:01:25]}  Rhe8 {[%clk 0:02:01]} 23. Ka2 {[%clk 0:01:03]}  Bf2 {[%clk 0:01:12]} 24. Qxd6 {[%clk 0:01:00]}  Bxe1 {[%clk 0:01:06]} 25. Ncxe1 {[%clk 0:00:53]}  Rxe4 {[%clk 0:00:58]} 26. Qxf6 {[%clk 0:00:52]}  Qc7 {[%clk 0:00:54]} 27. Nd3 {[%clk 0:00:40]}  Rd8 {[%clk 0:00:42]} 28. Rc1 {[%clk 0:00:36]}  Rd6 {[%clk 0:00:26]} 29. Qh8+ {[%clk 0:00:33]}  Rd8 {[%clk 0:00:26]} 30. Qf6 {[%clk 0:00:33]}  Bb7 {[%clk 0:00:23]} 31. Nc5 {[%clk 0:00:32]}  Ree8 {[%clk 0:00:23]} 32. Ng5 {[%clk 0:00:29]}  Rd5 {[%clk 0:00:19]} 33. Nxf7 {[%clk 0:00:26]}  Qe7 {[%clk 0:00:19]} 34. Qe6+ {[%clk 0:00:23]}  Qxe6 {[%clk 0:00:19]} 35. fxe6 {[%clk 0:00:24]}  Kc7 {[%clk 0:00:20]} 36. h3 {[%clk 0:00:19]}  Bc8 {[%clk 0:00:20]} 37. Ne4 {[%clk 0:00:05]}  Bxe6 {[%clk 0:00:17]} 38. Nfg5 {[%clk 0:00:05]}  Re5 {[%clk 0:00:13]} 39. Nf6 {[%clk 0:00:04]}  Rf8 {[%clk 0:00:08]} 40. Nfh7 {[%clk 0:00:02]}  Rf2 {[%clk 0:00:06]} 0-1


[Site "https://www.chess.com"]

[Event "Titled Tuesday Blitz August 17 2021"]
[White "Lamotte Tavares, Patrick"]
[Black "Gunduz, Umut Erdem"]
[WhiteFideId "5120950"]
[BlackFideId "6381383"]
[WhiteElo "1915"]
[BlackElo "2096"]
[Result "1-0"]
[Round "06"]
[TimeControl "180+1"]
[Date "2021.08.18"]
[WhiteClock "0:00:08"]
[BlackClock "0:00:04"]

1. Nf3 {[%clk 0:02:58]}  Nf6 {[%clk 0:02:57]} 2. c4 {[%clk 0:02:53]}  c5 {[%clk 0:02:53]} 3. g3 {[%clk 0:02:52]}  g6 {[%clk 0:02:49]} 4. Bg2 {[%clk 0:02:52]}  Bg7 {[%clk 0:02:49]} 5. O-O {[%clk 0:02:51]}  O-O {[%clk 0:02:48]} 6. Nc3 {[%clk 0:02:52]}  Nc6 {[%clk 0:02:49]} 7. d3 {[%clk 0:02:52]}  d5 {[%clk 0:02:49]} 8. a3 {[%clk 0:02:48]}  d4 {[%clk 0:02:48]} 9. Na4 {[%clk 0:02:48]}  Nd7 {[%clk 0:02:47]} 10. Rb1 {[%clk 0:02:43]}  a5 {[%clk 0:02:45]} 11. e3 {[%clk 0:02:40]}  e5 {[%clk 0:02:43]} 12. exd4 {[%clk 0:02:24]}  exd4 {[%clk 0:02:34]} 13. Bf4 {[%clk 0:02:22]}  Re8 {[%clk 0:02:22]} 14. Qd2 {[%clk 0:01:56]}  Ra7 {[%clk 0:02:09]} 15. Rfe1 {[%clk 0:01:41]}  b6 {[%clk 0:01:52]} 16. Rxe8+ {[%clk 0:01:30]}  Qxe8 {[%clk 0:01:53]} 17. Re1 {[%clk 0:01:30]}  Qf8 {[%clk 0:01:50]} 18. h4 {[%clk 0:01:20]}  Bb7 {[%clk 0:01:44]} 19. h5 {[%clk 0:01:13]}  Ra8 {[%clk 0:01:43]} 20. Bh3 {[%clk 0:01:06]}  f5 {[%clk 0:01:38]} 21. hxg6 {[%clk 0:01:03]}  hxg6 {[%clk 0:01:37]} 22. Nh4 {[%clk 0:01:04]}  Kh7 {[%clk 0:01:24]} 23. Nf3 {[%clk 0:00:57]}  Re8 {[%clk 0:01:18]} 24. Ng5+ {[%clk 0:00:51]}  Kh8 {[%clk 0:01:01]} 25. Ne6 {[%clk 0:00:44]}  Qf7 {[%clk 0:00:57]} 26. Nxg7 {[%clk 0:00:31]}  Rxe1+ {[%clk 0:00:55]} 27. Qxe1 {[%clk 0:00:30]}  Kxg7 {[%clk 0:00:55]} 28. Bg2 {[%clk 0:00:29]}  Qf6 {[%clk 0:00:14]} 29. Bd5 {[%clk 0:00:19]}  g5 {[%clk 0:00:13]} 30. Bc7 {[%clk 0:00:15]}  f4 {[%clk 0:00:08]} 31. g4 {[%clk 0:00:10]}  Kf8 {[%clk 0:00:04]} 32. Qe4 {[%clk 0:00:08]}  Ne7 {[%clk 0:00:03]} 33. Bxb7 {[%clk 0:00:08]}  Qf7 {[%clk 0:00:01]} 34. Bd6 {[%clk 0:00:08]}  Nf6 {[%clk 0:00:02]} 35. Bxe7+ {[%clk 0:00:08]}  Qxe7 {[%clk 0:00:03]} 36. Qxe7+ {[%clk 0:00:08]}  Kxe7 {[%clk 0:00:04]} 37. f3 {[%clk 0:00:08]}  Nd7 {[%clk 0:00:04]} 38. Bc6 {[%clk 0:00:08]} 1-0


[Site "https://www.chess.com"]

[Event "Titled Tuesday Blitz August 17 2021"]
[White "Laurusas, Tomas"]
[Black "Zakaryan_David"]
[WhiteFideId "12803731"]
[WhiteElo "2542"]
[BlackElo "2556"]
[Result "0-1"]
[Round "06"]
[TimeControl "180+1"]
[Date "2021.08.17"]
[WhiteClock "0:00:14"]
[BlackClock "0:00:54"]

1. Nf3 {[%clk 0:03:00]}  c5 {[%clk 0:02:57]} 2. d3 {[%clk 0:02:59]}  Nc6 {[%clk 0:02:58]} 3. Nbd2 {[%clk 0:02:59]}  g6 {[%clk 0:02:57]} 4. e4 {[%clk 0:02:58]}  Bg7 {[%clk 0:02:57]} 5. Be2 {[%clk 0:02:58]}  d6 {[%clk 0:02:58]} 6. O-O {[%clk 0:02:59]}  e5 {[%clk 0:02:59]} 7. c3 {[%clk 0:02:55]}  Nge7 {[%clk 0:02:59]} 8. a3 {[%clk 0:02:56]}  a5 {[%clk 0:02:59]} 9. a4 {[%clk 0:02:56]}  O-O {[%clk 0:02:59]} 10. Nc4 {[%clk 0:02:56]}  Be6 {[%clk 0:02:59]} 11. Re1 {[%clk 0:02:56]}  Rb8 {[%clk 0:02:56]} 12. Na3 {[%clk 0:02:45]}  Qd7 {[%clk 0:02:55]} 13. Nd2 {[%clk 0:02:44]}  d5 {[%clk 0:02:52]} 14. Nb5 {[%clk 0:02:42]}  d4 {[%clk 0:02:46]} 15. Nc4 {[%clk 0:02:41]}  Bxc4 {[%clk 0:02:43]} 16. dxc4 {[%clk 0:02:40]}  f5 {[%clk 0:02:42]} 17. Bf3 {[%clk 0:02:38]}  Rbd8 {[%clk 0:02:39]} 18. Bd2 {[%clk 0:02:27]}  h5 {[%clk 0:02:37]} 19. exf5 {[%clk 0:02:22]}  gxf5 {[%clk 0:02:37]} 20. Bxh5 {[%clk 0:02:18]}  e4 {[%clk 0:02:35]} 21. Bf4 {[%clk 0:02:16]}  Qe6 {[%clk 0:02:32]} 22. Qe2 {[%clk 0:02:12]}  d3 {[%clk 0:02:29]} 23. Qe3 {[%clk 0:02:12]}  Qxc4 {[%clk 0:02:27]} 24. f3 {[%clk 0:02:12]}  Nd5 {[%clk 0:02:24]} 25. Qd2 {[%clk 0:02:09]}  Nxf4 {[%clk 0:02:20]} 26. Qxf4 {[%clk 0:02:10]}  d2 {[%clk 0:02:14]} 27. Red1 {[%clk 0:02:02]}  Qd3 {[%clk 0:02:05]} 28. fxe4 {[%clk 0:01:49]}  fxe4 {[%clk 0:02:02]} 29. Qg4 {[%clk 0:01:47]}  Qe3+ {[%clk 0:01:49]} 30. Kh1 {[%clk 0:01:46]}  Qh6 {[%clk 0:01:49]} 31. Nc7 {[%clk 0:01:29]}  Ne5 {[%clk 0:01:44]} 32. Qe6+ {[%clk 0:01:05]}  Qxe6 {[%clk 0:01:40]} 33. Nxe6 {[%clk 0:01:05]}  e3 {[%clk 0:01:39]} 34. Nxd8 {[%clk 0:01:00]}  Rxd8 {[%clk 0:01:37]} 35. Rab1 {[%clk 0:00:56]}  Nd3 {[%clk 0:01:32]} 36. Kg1 {[%clk 0:00:53]}  Nf2 {[%clk 0:01:24]} 37. Rf1 {[%clk 0:00:51]}  Rf8 {[%clk 0:01:17]} 38. Bf3 {[%clk 0:00:48]}  Rxf3 {[%clk 0:01:10]} 39. gxf3 {[%clk 0:00:49]}  Nd3 {[%clk 0:01:10]} 40. Rfd1 {[%clk 0:00:44]}  Bh6 {[%clk 0:01:07]} 41. Kf1 {[%clk 0:00:35]}  Nf4 {[%clk 0:01:06]} 42. Kg1 {[%clk 0:00:23]}  Kf7 {[%clk 0:01:02]} 43. h4 {[%clk 0:00:23]}  Kf6 {[%clk 0:00:58]} 44. b4 {[%clk 0:00:21]}  Ne2+ {[%clk 0:00:55]} 45. Kg2 {[%clk 0:00:16]}  Nxc3 {[%clk 0:00:56]} 46. bxa5 {[%clk 0:00:14]}  Nxd1 {[%clk 0:00:54]} 47. Rxb7 {[%clk 0:00:14]}  e2 {[%clk 0:00:54]} 0-1


[Site "https://www.chess.com"]

[Event "Titled Tuesday Blitz August 17 2021"]
[White "Leitao, Rafael"]
[Black "Serikbay, Assel"]
[WhiteFideId "2101246"]
[BlackFideId "13706799"]
[WhiteElo "2609"]
[BlackElo "2044"]
[Result "1-0"]
[Round "06"]
[TimeControl "180+1"]
[Date "2021.08.18"]
[WhiteClock "0:00:19"]
[BlackClock "0:00:03"]

1. e4 {[%clk 0:03:00]}  c5 {[%clk 0:02:58]} 2. Nf3 {[%clk 0:02:59]}  e6 {[%clk 0:02:58]} 3. d4 {[%clk 0:02:56]}  cxd4 {[%clk 0:02:59]} 4. Nxd4 {[%clk 0:02:54]}  a6 {[%clk 0:02:59]} 5. Bd3 {[%clk 0:02:52]}  Nf6 {[%clk 0:02:57]} 6. O-O {[%clk 0:02:50]}  d6 {[%clk 0:02:56]} 7. Qe2 {[%clk 0:02:50]}  g6 {[%clk 0:02:56]} 8. c4 {[%clk 0:02:49]}  Bg7 {[%clk 0:02:56]} 9. Nc3 {[%clk 0:02:48]}  O-O {[%clk 0:02:56]} 10. Be3 {[%clk 0:02:42]}  Nbd7 {[%clk 0:02:55]} 11. f4 {[%clk 0:02:42]}  Re8 {[%clk 0:02:37]} 12. Kh1 {[%clk 0:02:37]}  b6 {[%clk 0:02:37]} 13. Rad1 {[%clk 0:02:34]}  Bb7 {[%clk 0:02:36]} 14. Bb1 {[%clk 0:02:32]}  Qc7 {[%clk 0:02:35]} 15. Nf3 {[%clk 0:02:27]}  Rac8 {[%clk 0:02:34]} 16. Bd3 {[%clk 0:01:34]}  Nc5 {[%clk 0:02:21]} 17. e5 {[%clk 0:01:20]}  dxe5 {[%clk 0:02:18]} 18. fxe5 {[%clk 0:01:20]}  Ng4 {[%clk 0:02:13]} 19. Bf4 {[%clk 0:01:17]}  Bxf3 {[%clk 0:02:06]} 20. gxf3 {[%clk 0:01:05]}  Nxe5 {[%clk 0:02:00]} 21. Bb1 {[%clk 0:01:01]}  Rcd8 {[%clk 0:01:40]} 22. Rde1 {[%clk 0:00:57]}  Ncd7 {[%clk 0:01:29]} 23. b3 {[%clk 0:00:50]}  b5 {[%clk 0:00:35]} 24. Ne4 {[%clk 0:00:49]}  bxc4 {[%clk 0:00:32]} 25. Rc1 {[%clk 0:00:49]}  Qa5 {[%clk 0:00:26]} 26. bxc4 {[%clk 0:00:48]}  Nc6 {[%clk 0:00:23]} 27. Nd6 {[%clk 0:00:46]}  Rf8 {[%clk 0:00:22]} 28. Nb7 {[%clk 0:00:45]}  Nd4 {[%clk 0:00:21]} 29. Qg2 {[%clk 0:00:41]}  Qh5 {[%clk 0:00:15]} 30. Nxd8 {[%clk 0:00:40]}  Rxd8 {[%clk 0:00:16]} 31. Qg5 {[%clk 0:00:34]}  Qxg5 {[%clk 0:00:14]} 32. Bxg5 {[%clk 0:00:35]}  f6 {[%clk 0:00:15]} 33. Be3 {[%clk 0:00:35]}  Nf5 {[%clk 0:00:13]} 34. Bf2 {[%clk 0:00:34]}  Ne5 {[%clk 0:00:11]} 35. Bxf5 {[%clk 0:00:33]}  gxf5 {[%clk 0:00:10]} 36. Rfd1 {[%clk 0:00:32]}  Rxd1+ {[%clk 0:00:06]} 37. Rxd1 {[%clk 0:00:32]}  Nxc4 {[%clk 0:00:07]} 38. Rd7 {[%clk 0:00:28]}  Ne5 {[%clk 0:00:06]} 39. Ra7 {[%clk 0:00:28]}  Nxf3 {[%clk 0:00:07]} 40. Rxa6 {[%clk 0:00:28]}  e5 {[%clk 0:00:07]} 41. a4 {[%clk 0:00:29]}  e4 {[%clk 0:00:07]} 42. a5 {[%clk 0:00:29]}  f4 {[%clk 0:00:07]} 43. Kg2 {[%clk 0:00:27]}  Ne5 {[%clk 0:00:05]} 44. Rb6 {[%clk 0:00:27]}  Nc4 {[%clk 0:00:02]} 45. Rb5 {[%clk 0:00:25]}  e3 {[%clk 0:00:01]} 46. a6 {[%clk 0:00:24]}  exf2 {[%clk 0:00:01]} 47. a7 {[%clk 0:00:21]}  Nd6 {[%clk 0:00:02]} 48. a8=Q+ {[%clk 0:00:21]}  Kf7 {[%clk 0:00:03]} 49. Qd5+ {[%clk 0:00:20]}  Kg6 {[%clk 0:00:03]} 50. Qxd6 {[%clk 0:00:19]} 1-0


[Site "https://www.chess.com"]

[Event "Titled Tuesday Blitz August 17 2021"]
[White "Levitskiy, Andrey"]
[Black "Ivanisevic, Ivan"]
[WhiteFideId "14132885"]
[BlackFideId "912417"]
[WhiteElo "2340"]
[BlackElo "2499"]
[Result "0-1"]
[Round "06"]
[TimeControl "180+1"]
[Date "2021.08.17"]
[WhiteClock "0:00:01"]
[BlackClock "0:00:43"]

1. e4 {[%clk 0:03:00]}  e5 {[%clk 0:02:59]} 2. Nf3 {[%clk 0:03:00]}  d6 {[%clk 0:02:59]} 3. d4 {[%clk 0:03:00]}  exd4 {[%clk 0:02:59]} 4. Nxd4 {[%clk 0:03:00]}  Nf6 {[%clk 0:03:00]} 5. Nc3 {[%clk 0:03:01]}  Be7 {[%clk 0:03:00]} 6. Be2 {[%clk 0:02:46]}  O-O {[%clk 0:02:58]} 7. Bf4 {[%clk 0:02:47]}  Nc6 {[%clk 0:02:56]} 8. Qd2 {[%clk 0:02:45]}  Nxd4 {[%clk 0:02:52]} 9. Qxd4 {[%clk 0:02:45]}  Be6 {[%clk 0:02:53]} 10. O-O-O {[%clk 0:02:37]}  Nd7 {[%clk 0:02:41]} 11. f3 {[%clk 0:02:04]}  Bf6 {[%clk 0:02:20]} 12. Qd2 {[%clk 0:02:02]}  b5 {[%clk 0:02:10]} 13. Nd5 {[%clk 0:01:32]}  Bxd5 {[%clk 0:02:06]} 14. exd5 {[%clk 0:01:10]}  Nc5 {[%clk 0:01:54]} 15. Be3 {[%clk 0:01:04]}  Re8 {[%clk 0:01:43]} 16. Bxc5 {[%clk 0:00:58]}  dxc5 {[%clk 0:01:44]} 17. Bxb5 {[%clk 0:00:42]}  Bxb2+ {[%clk 0:01:43]} 18. Kxb2 {[%clk 0:00:43]}  Rb8 {[%clk 0:01:42]} 19. a4 {[%clk 0:00:37]}  a6 {[%clk 0:01:41]} 20. Rhe1 {[%clk 0:00:13]}  axb5 {[%clk 0:01:39]} 21. a5 {[%clk 0:00:14]}  b4 {[%clk 0:01:32]} 22. d6 {[%clk 0:00:13]}  Rxe1 {[%clk 0:01:27]} 23. Rxe1 {[%clk 0:00:06]}  cxd6 {[%clk 0:01:24]} 24. Qd5 {[%clk 0:00:05]}  Qxa5 {[%clk 0:01:11]} 25. Ra1 {[%clk 0:00:05]}  Qb6 {[%clk 0:01:04]} 26. Re1 {[%clk 0:00:04]}  Qc7 {[%clk 0:00:57]} 27. Rd1 {[%clk 0:00:03]}  Rd8 {[%clk 0:00:51]} 28. Ra1 {[%clk 0:00:04]}  h6 {[%clk 0:00:47]} 29. Ra6 {[%clk 0:00:04]}  Qe7 {[%clk 0:00:45]} 30. Rc6 {[%clk 0:00:01]}  Qf6+ {[%clk 0:00:45]} 31. Kb1 {[%clk 0:00:01]}  Re8 {[%clk 0:00:43]} 0-1


[Site "https://www.chess.com"]